bitfinex/quotes_SOLUSD_20220211
["timestamp","ask_amount","ask_price","bid_price","bid_amount"]
[1644611826908,45.08204174,97.616,97.473,61.78]
[1644611827105,46.82304174,97.616,97.49,0.48]
[1644611827304,1.741,97.616,97.511,61.78]
[1644611827508,12.15,97.67,97.511,61.78]
[1644611827509,1.69,97.66,97.511,61.78]
[1644611827707,1.639,97.669,97.513,61.78]
[1644611827906,12.15,97.67,97.514,5.123]
[1644611828106,1.539,97.669,97.515,61.78]
[1644611828307,1.539,97.669,97.55,15.3772]
[1644611828308,15.3763,97.66,97.55,15.3772]
[1644611828506,1.641,97.659,97.55,15.3772]
[1644611828707,13.60522602,97.659,97.55,15.3772]
[1644611829107,1.641,97.659,97.55,15.3772]
[1644611829511,15.38,97.64,97.522,23.7554]
[1644611829709,1.744,97.639,97.522,23.7554]
[1644611829908,17.72381696,97.639,97.522,23.7554]
[1644611830116,17.72381696,97.639,97.474,6.55819955]
[1644611830117,13.59614905,97.638,97.474,5.122]
[1644611830312,1.848,97.637,97.474,5.122]
[1644611830511,15.3865,97.61,97.486,42.38299165]
[1644611830711,12.15,97.6,97.486,4.01395]
[1644611830911,28.98264905,97.61,97.486,4.01395]
[1644611831514,12.15,97.6,97.486,4.01395]
[1644611831714,45.01472375,97.569,97.486,4.01395]
[1644611832019,1.84,97.568,97.486,4.01395]
[1644611832214,45.01472375,97.569,97.486,6.39761791]
[1644611832413,45.01472375,97.569,97.487,5.126]
[1644611832614,45.01472375,97.569,97.488,4.01387]
[1644611833018,12.15,97.6,97.489,5.126]
[1644611833216,12.15,97.61,97.491,61.78]
[1644611833415,1.826,97.639,97.492,5.125]
[1644611833639,1.823,97.655,97.497,1.43619955]
[1644611833841,1.82,97.656,97.502,1.43619955]
[1644611834038,48.75487995,97.655,97.504,61.78]
[1644611834240,15.3807,97.63,97.53,15.3811]
[1644611834440,36.83098107,97.629,97.531,41.6683579]
[1644611834841,1.854,97.628,97.531,41.6683579]
[1644611835243,15.383,97.61,97.531,41.6683579]
[1644611835444,34.1893115,97.609,97.531,41.6683579]
[1644611837046,15.3843,97.6,97.53,15.3831]
[1644611837252,15.3843,97.6,97.51,15.3849]
[1644611838045,15.3843,97.6,97.511,36.91582315]
[1644611838446,15.3843,97.6,97.52,15.3834]
[1644611838648,15.3843,97.6,97.488,1.43619955]
[1644611838848,15.3843,97.6,97.489,5.125]
[1644611839050,15.3843,97.6,97.499,5.125]
[1644611839248,15.3843,97.6,97.484,3.81986746]
[1644611839448,15.3843,97.6,97.486,1.43619955]
[1644611839646,15.3843,97.6,97.499,47.63058272]
[1644611840549,15.3843,97.6,97.5,15.3868]
[1644611840748,1.844,97.599,97.499,47.63058272]
[1644611840949,15.3894,97.57,97.499,47.63058272]
[1644611841149,34.56526913,97.569,97.499,47.63058272]
[1644611842851,34.56526913,97.569,97.5,15.3878]
[1644611843452,15.3868,97.59,97.5,15.3878]
[1644611844554,37.7814145,97.589,97.5,15.3878]
[1644611844851,15.387,97.58,97.48,15.39]
[1644611845056,1.846,97.588,97.48,15.39]
[1644611845057,1.846,97.579,97.48,15.39]
[1644611845252,2.38366791,97.579,97.48,15.39]
[1644611845652,1.846,97.588,97.481,42.20904721]
[1644611845854,37.7814145,97.589,97.481,42.20904721]
[1644611846451,37.7814145,97.589,97.465,1.43619955]
[1644611846452,15.3921,97.55,97.465,1.43619955]
[1644611846655,1.843,97.549,97.443,1.43619955]
[1644611846853,1.843,97.549,97.416,2.87341871]
[1644611846854,4.22666791,97.549,97.428,1.43619955]
[1644611847059,30.37249634,97.548,97.428,1.43619955]
[1644611847254,5.128,97.547,97.415,1.43619955]
[1644611847554,5.128,97.547,97.388,2.87341871]
[1644611847555,15.4011,97.53,97.413,1.43619955]
[1644611847758,12.15,97.52,97.416,47.96095028]
[1644611848155,5.128,97.519,97.416,47.96095028]
[1644611848360,7.51166791,97.519,97.416,47.96095028]
[1644611848552,2.38366791,97.518,97.416,47.96095028]
[1644611848755,15.407,97.49,97.416,47.96095028]
[1644611849553,15.407,97.49,97.411,1.43619955]
[1644611849755,15.4051,97.47,97.405,1.43619955]
[1644611849952,15.4051,97.47,97.406,1.43619955]
[1644611850160,12.15,97.52,97.409,1.43619955]
[1644611850353,5.13,97.519,97.413,1.43619955]
[1644611850557,5.128,97.529,97.426,1.43619955]
[1644611850754,12.15,97.57,97.445,1.43619955]
[1644611850956,15.3924,97.55,97.445,1.43619955]
[1644611851154,47.83725554,97.549,97.45,1.43619955]
[1644611851554,47.83725554,97.549,97.451,1.43619955]
[1644611851956,47.83725554,97.549,97.449,1.43619955]
[1644611852154,47.83725554,97.549,97.447,61.78]
[1644611852155,15.3935,97.54,97.47,15.3924]
[1644611852357,5.127,97.539,97.471,42.57922417]
[1644611852558,5.128,97.547,97.471,42.57922417]
[1644611852761,5.127,97.548,97.471,42.57922417]
[1644611852957,5.127,97.546,97.471,42.57922417]
[1644611853156,5.127,97.547,97.471,42.57922417]
[1644611853357,5.127,97.548,97.471,42.57922417]
[1644611853555,47.83725554,97.549,97.471,42.57922417]
[1644611854758,43.20408892,97.529,97.471,42.57922417]
[1644611855456,15.3951,97.53,97.471,42.57922417]
[1644611856057,15.3929,97.55,97.471,42.57922417]
[1644611856256,12.15,97.59,97.471,42.57922417]
[1644611856457,34.95735033,97.572,97.472,66.906]
[1644611856956,34.95735033,97.572,97.472,5.126]
[1644611857159,27.5399,97.57,97.471,42.57922417]
[1644611857358,5.127,97.569,97.471,42.57922417]
[1644611857559,17.58394473,97.569,97.471,42.57922417]
[1644611857760,2.38366791,97.568,97.471,42.57922417]
[1644611858159,15.3913,97.56,97.471,42.57922417]
[1644611858359,5.127,97.59,97.472,66.907]
[1644611858560,5.127,97.6,97.475,1.43619955]
[1644611858859,71.2754,97.604,97.476,5.126]
[1644611859063,5.126,97.603,97.478,1.43619955]
[1644611859263,15.3851,97.6,97.48,16.82719955]
[1644611859464,15.3851,97.6,97.485,1.43619955]
[1644611859664,15.3851,97.6,97.495,1.43619955]
[1644611860369,15.3851,97.6,97.496,1.43619955]
[1644611860565,15.3851,97.6,97.495,1.43619955]
[1644611860765,15.3851,97.6,97.51,15.3841]
[1644611860966,5.125,97.599,97.511,42.43845823]
[1644611861566,15.3859,97.59,97.511,42.43845823]
[1644611861769,5.125,97.589,97.511,42.43845823]
[1644611862072,40.579327,97.579,97.511,42.43845823]
[1644611862267,5.125,97.597,97.511,42.43845823]
[1644611862470,5.125,97.609,97.511,42.43845823]
[1644611862668,15.3866,97.59,97.511,42.43845823]
[1644611862870,0.04721072,97.61,97.511,42.43845823]
[1644611863067,5.125,97.609,97.511,42.43845823]
[1644611863267,41.94643559,97.615,97.511,42.43845823]
[1644611863870,37.57308477,97.599,97.52,15.3848]
[1644611864477,5.125,97.598,97.52,15.3848]
[1644611865472,15.3852,97.59,97.511,42.43845823]
[1644611865669,5.125,97.589,97.511,42.43845823]
[1644611865870,5.125,97.596,97.511,42.43845823]
[1644611866673,5.125,97.598,97.511,42.43845823]
[1644611867473,15.3863,97.59,97.52,15.385]
[1644611868273,37.57308477,97.599,97.52,15.385]
[1644611869074,5.125,97.598,97.52,15.385]
[1644611869273,5.125,97.598,97.511,42.43845823]
[1644611869573,7.50866791,97.598,97.511,42.43845823]
[1644611869774,15.3848,97.59,97.511,42.43845823]
[1644611869974,5.125,97.589,97.465,6.56119955]
[1644611870178,7.50866791,97.589,97.465,5.125]
[1644611870374,22.70894473,97.589,97.47,15.3929]
[1644611870778,15.3925,97.56,97.473,1.43619955]
[1644611870977,20.32527682,97.589,97.471,61.78]
[1644611870978,5.125,97.589,97.472,1.43619955]
[1644611871186,5.126,97.627,97.494,1.43619955]
[1644611871382,5.126,97.627,97.473,66.906]
[1644611871383,0.04721072,97.62,97.495,5.125]
[1644611871583,0.04721072,97.6,97.494,5.125]
[1644611871782,15.43011072,97.61,97.5,15.3863]
[1644611871982,47.75360377,97.602,97.501,61.78]
[1644611872182,15.3829,97.61,97.501,61.78]
[1644611872382,15.3829,97.61,97.503,61.78]
[1644611872681,5.125,97.609,97.503,63.21619955]
[1644611872882,0.04721072,97.62,97.505,61.78]
[1644611873085,5.124,97.619,97.507,61.78]
[1644611873282,41.86776841,97.618,97.508,5.124]
[1644611873882,41.86776841,97.618,97.531,47.11148571]
[1644611874083,5.124,97.617,97.531,47.11148571]
[1644611874683,5.124,97.617,97.531,45.28283069]
[1644611875306,0.04721072,97.62,97.55,15.3797]
[1644611875504,15.3783,97.63,97.55,15.3797]
[1644611875906,5.123,97.629,97.55,15.3797]
[1644611876308,45.30257154,97.628,97.56,15.3784]
[1644611876505,45.30257154,97.628,97.53,51.2621]
[1644611876506,5.123,97.627,97.456,4.32710437]
[1644611876708,15.3798,97.62,97.512,1.43619955]
[1644611876908,12.15,97.61,97.492,1.43619955]
[1644611877106,12.15,97.6,97.48,1.43619955]
[1644611877308,5.126,97.599,97.474,1.43619955]
[1644611877511,36.20070061,97.598,97.482,39.89876192]
[1644611877709,15.3882,97.59,97.482,39.89876192]
[1644611877908,5.126,97.589,97.482,39.89876192]
[1644611878110,2.38366791,97.59,97.482,39.89876192]
[1644611878312,5.126,97.589,97.482,39.89876192]
[1644611878509,5.126,97.597,97.482,39.89876192]
[1644611879109,15.3893,97.56,97.482,39.89876192]
[1644611879408,5.127,97.559,97.482,39.89876192]
[1644611879609,38.52628783,97.563,97.482,39.89876192]
[1644611880011,0.04721072,97.59,97.482,39.89876192]
[1644611880211,5.127,97.595,97.483,61.78]
[1644611880413,15.3891,97.56,97.483,61.78]
[1644611880612,5.127,97.589,97.483,61.78]
[1644611880815,0.04721072,97.58,97.483,63.21619955]
[1644611881119,45.91860548,97.588,97.49,15.3886]
[1644611881314,5.126,97.587,97.49,15.3886]
[1644611882113,5.126,97.587,97.491,61.78]
[1644611882311,0.04721072,97.6,97.511,61.78]
[1644611882513,0.04721072,97.61,97.512,5.125]
[1644611882713,0.04721072,97.62,97.516,1.43619955]
[1644611882913,5.124,97.633,97.513,2.38366791]
[1644611883113,0.04721072,97.63,97.525,1.43619955]
[1644611883316,15.3762,97.64,97.541,61.78]
[1644611883515,15.3762,97.64,97.542,5.123]
[1644611883916,0.04721072,97.65,97.543,2.38366791]
[1644611884115,0.04721072,97.67,97.555,1.43619955]
[1644611884316,0.04721072,97.67,97.556,5.122]
[1644611884516,0.04721072,97.67,97.557,61.78]
[1644611884717,15.373,97.66,97.57,15.3754]
[1644611884917,15.373,97.66,97.571,61.78]
[1644611885316,5.122,97.669,97.571,61.78]
[1644611885517,0.04721072,97.68,97.571,61.78]
[1644611886118,15.3714,97.67,97.59,15.3734]
[1644611886318,15.3714,97.67,97.591,48.57376023]
[1644611886517,0.04721072,97.69,97.592,61.78]
[1644611886716,0.04721072,97.7,97.592,64.16366791]
[1644611886917,0.04721072,97.71,97.592,64.16366791]
[1644611887119,0.04721072,97.72,97.61,15.3698]
[1644611887319,0.04721072,97.72,97.611,66.899]
[1644611887517,0.04721072,97.72,97.613,61.78]
[1644611887720,15.40961072,97.73,97.614,5.119]
[1644611888019,0.04721072,97.73,97.614,5.119]
[1644611888219,15.40551072,97.77,97.641,61.78]
[1644611888423,0.04721072,97.73,97.651,61.78]
[1644611888721,49.98578203,97.769,97.651,98.54348145]
[1644611888919,44.86778203,97.769,97.652,5.117]
[1644611889119,5.117,97.768,97.651,98.54348145]
[1644611889320,44.86778203,97.769,97.671,61.78]
[1644611889524,15.40421072,97.77,97.671,61.78]
[1644611889525,15.357,97.77,97.671,61.78]
[1644611889721,0.04721072,97.78,97.672,5.116]
[1644611890019,0.04721072,97.79,97.672,5.116]
[1644611890221,2.38366791,97.78,97.672,5.116]
[1644611890422,15.3578,97.77,97.69,15.3565]
[1644611890622,5.116,97.769,97.691,38.24344449]
[1644611890820,15.3578,97.77,97.691,38.24344449]
[1644611891024,5.116,97.769,97.691,38.24344449]
[1644611892222,5.116,97.777,97.691,38.24344449]
[1644611893626,37.69808645,97.778,97.691,38.24344449]
[1644611893824,37.69808645,97.778,97.7,15.3545]
[1644611894023,2.38366791,97.777,97.691,38.24344449]
[1644611894224,5.115,97.776,97.691,38.24344449]
[1644611894825,5.115,97.776,97.67,15.3583]
[1644611895026,15.3578,97.77,97.67,15.3583]
[1644611895627,2.38366791,97.769,97.67,15.3583]
[1644611895825,5.116,97.768,97.671,39.86892818]
[1644611896327,15.3601,97.76,97.671,39.86892818]
[1644611896525,0.04721072,97.78,97.671,39.86892818]
[1644611896726,5.116,97.789,97.672,5.116]
[1644611897335,15.357,97.78,97.68,15.357]
[1644611897528,0.04721072,97.79,97.681,5.116]
[1644611897730,0.04721072,97.81,97.69,12.15]
[1644611897929,0.04721072,97.81,97.673,56.01966791]
[1644611897930,0.04721072,97.79,97.701,61.78]
[1644611898127,0.04721072,97.83,97.711,61.78]
[1644611898327,0.04721072,97.83,97.712,5.113]
[1644611898533,0.04721072,97.83,97.714,61.78]
[1644611898732,0.04721072,97.85,97.72,15.3468]
[1644611898933,15.345,97.86,97.72,15.3468]
[1644611898934,0.04721072,97.83,97.72,15.3468]
[1644611899131,0.04721072,97.85,97.721,5.113]
[1644611899333,2.38366791,97.829,97.72,12.15]
[1644611899532,44.97266462,97.828,97.721,5.113]
[1644611899731,11.235401,97.827,97.72,12.15]
[1644611899932,11.235401,97.827,97.683,73.0595]
[1644611899933,15.3508,97.82,97.687,5.113]
[1644611900231,5.114,97.819,97.687,5.113]
[1644611900432,16.071534,97.818,97.687,5.113]
[1644611900635,5.114,97.817,97.687,5.113]
[1644611900832,31.378683,97.816,97.688,48.13991176]
[1644611901031,5.114,97.815,97.688,48.13991176]
[1644611901233,20.39047127,97.815,97.688,48.13991176]
[1644611901435,12.15,97.8,97.688,48.13991176]
[1644611901634,36.51882788,97.798,97.688,48.13991176]
[1644611901833,39.70712068,97.779,97.688,48.13991176]
[1644611902033,5.115,97.778,97.688,48.13991176]
[1644611902433,2.38366791,97.777,97.688,48.13991176]
[1644611902836,5.116,97.776,97.688,48.13991176]
[1644611903234,5.116,97.778,97.688,48.13991176]
[1644611903735,45.65743609,97.759,97.688,48.13991176]
[1644611904037,45.65743609,97.759,97.661,61.78]
[1644611904238,5.117,97.758,97.652,23.8286]
[1644611904535,27.5117,97.75,97.613,24.4558]
[1644611904735,5.118,97.749,97.613,24.4558]
[1644611904938,7.50166791,97.749,97.62,15.3649]
[1644611905136,7.50166791,97.749,97.613,24.4558]
[1644611905137,7.50166791,97.749,97.621,43.41252735]
[1644611905337,0.04721072,97.75,97.622,61.78]
[1644611906345,0.04721072,97.75,97.631,61.78]
[1644611906549,0.04721072,97.75,97.623,23.9621]
[1644611906550,0.04721072,97.75,97.643,1.43619955]
[1644611906745,0.04721072,97.77,97.657,1.43619955]
[1644611906942,0.04721072,97.79,97.671,61.78]
[1644611907143,0.04721072,97.77,97.681,61.78]
[1644611907343,0.04721072,97.79,97.682,1.43619955]
[1644611907543,0.04721072,97.81,97.685,1.43619955]
[1644611907743,0.04721072,97.8,97.702,46.09392954]
[1644611907942,0.04721072,97.81,97.731,45.12564154]
[1644611908142,38.79285306,97.815,97.731,45.12564154]
[1644611909566,5.113,97.814,97.731,45.12564154]
[1644611909766,38.79285306,97.815,97.731,45.12564154]
[1644611910666,7.49666791,97.814,97.731,45.12564154]
[1644611910867,2.38366791,97.814,97.731,45.12564154]
[1644611911066,7.49666791,97.829,97.731,45.12564154]
[1644611911569,5.113,97.829,97.732,61.78]
[1644611911769,15.3487,97.83,97.732,61.78]
[1644611912065,0.04721072,97.84,97.733,5.113]
[1644611912265,0.04721072,97.85,97.734,61.78]
[1644611912467,0.04721072,97.86,97.75,0.48]
[1644611912666,0.56057018,97.87,97.781,61.78]
[1644611912868,0.51335946,97.87,97.781,61.78]
[1644611913066,0.51335946,97.87,97.782,35.42614809]
[1644611913267,0.51335946,97.87,97.783,5.111]
[1644611913469,5.111,97.869,97.782,35.42614809]
[1644611913668,15.3443,97.86,97.782,35.42614809]
[1644611913866,5.111,97.859,97.782,35.42614809]
[1644611914072,5.111,97.868,97.782,35.42614809]
[1644611914270,0.51335946,97.87,97.782,35.42614809]
[1644611914468,0.51335946,97.87,97.783,61.78]
[1644611914969,0.51335946,97.87,97.791,61.78]
[1644611915370,5.15821072,97.89,97.791,61.78]
[1644611915571,0.04721072,97.9,97.791,61.78]
[1644611915770,5.15721072,97.92,97.793,61.78]
[1644611915968,0.04721072,97.91,97.793,61.78]
[1644611916168,5.15721072,97.92,97.793,61.78]
[1644611916367,0.04721072,97.91,97.793,61.78]
[1644611916568,5.109,97.918,97.793,63.21619955]
[1644611916776,0.04721072,97.91,97.801,61.78]
[1644611916971,0.04721072,97.92,97.821,61.78]
[1644611917172,0.04721072,97.91,97.821,61.78]
[1644611917472,0.04721072,97.93,97.821,61.78]
[1644611917673,5.108,97.929,97.821,61.78]
[1644611917875,40.91144036,97.928,97.831,61.78]
[1644611918074,40.91144036,97.928,97.822,38.15270777]
[1644611918275,5.108,97.927,97.822,38.15270777]
[1644611918475,5.108,97.927,97.823,61.78]
[1644611918676,7.49166791,97.927,97.823,61.78]
[1644611918877,5.108,97.927,97.823,61.78]
[1644611919076,5.108,97.927,97.822,38.15270777]
[1644611919278,14.00420491,97.926,97.822,38.15270777]
[1644611919477,34.620439,97.925,97.822,38.15270777]
[1644611919677,11.620537,97.924,97.822,38.15270777]
[1644611919876,12.15,97.92,97.822,38.15270777]
[1644611920078,15.343,97.89,97.822,38.15270777]
[1644611920277,36.81381933,97.888,97.822,38.15270777]
[1644611920478,5.109,97.887,97.822,38.15270777]
[1644611920877,0.04721072,97.91,97.822,38.15270777]
[1644611921077,0.04721072,97.92,97.822,38.15270777]
[1644611921278,0.04721072,97.93,97.822,38.15270777]
[1644611921478,5.108,97.929,97.822,38.15270777]
[1644611921678,0.04721072,97.94,97.822,38.15270777]
[1644611921883,5.108,97.939,97.822,38.15270777]
[1644611922279,2.38366791,97.938,97.822,38.15270777]
[1644611922479,48.54312325,97.909,97.822,38.15270777]
[1644611922678,5.109,97.908,97.822,38.15270777]
[1644611922879,7.49266791,97.908,97.822,38.15270777]
[1644611923078,15.27647127,97.908,97.822,38.15270777]
[1644611923280,7.49266791,97.907,97.822,38.15270777]
[1644611923687,5.109,97.907,97.822,38.15270777]
[1644611923880,5.109,97.908,97.822,38.15270777]
[1644611924487,48.54312325,97.909,97.822,38.15270777]
[1644611924683,15.3372,97.9,97.822,38.15270777]
[1644611925081,5.109,97.899,97.822,38.15270777]
[1644611925282,15.3372,97.9,97.822,38.15270777]
[1644611925882,2.38366791,97.899,97.786,5.109]
[1644611926083,7.49366791,97.899,97.786,5.109]
[1644611926282,15.3445,97.87,97.786,5.109]
[1644611926583,5.111,97.869,97.76,1.43619955]
[1644611926782,5.111,97.869,97.761,47.84068014]
[1644611926783,2.38366791,97.869,97.761,47.84068014]
[1644611926985,0.04721072,97.86,97.761,47.84068014]
[1644611927182,46.88318938,97.867,97.761,47.84068014]
[1644611927383,2.38366791,97.859,97.761,47.84068014]
[1644611927584,5.111,97.858,97.761,47.84068014]
[1644611927884,2.38366791,97.857,97.761,47.84068014]
[1644611928087,5.112,97.856,97.761,47.84068014]
[1644611928487,15.3448,97.85,97.761,47.84068014]
[1644611928685,41.80303842,97.848,97.761,47.84068014]
[1644611929088,5.112,97.847,97.761,47.84068014]
[1644611929685,15.3475,97.84,97.761,47.84068014]
[1644611929887,5.112,97.839,97.761,47.84068014]
[1644611930088,5.112,97.847,97.761,47.84068014]
[1644611930289,2.38366791,97.839,97.725,1.43619955]
[1644611930489,12.15,97.83,97.71,6.54819955]
[1644611930690,12.19721072,97.83,97.71,5.112]
[1644611930990,15.36,97.8,97.71,5.112]
[1644611931194,12.15,97.79,97.71,5.112]
[1644611931396,51.1982,97.78,97.71,5.112]
[1644611931594,12.15,97.77,97.71,5.112]
[1644611931793,5.115,97.769,97.71,5.112]
[1644611932004,15.3628,97.76,97.71,5.112]
[1644611932203,5.115,97.759,97.71,5.112]
[1644611932402,48.53487146,97.767,97.711,42.76992066]
[1644611933004,15.3594,97.76,97.711,42.76992066]
[1644611933403,5.115,97.759,97.663,1.43619955]
[1644611933603,5.117,97.766,97.663,1.43619955]
[1644611933804,5.117,97.766,97.662,1.43619955]
[1644611934203,5.117,97.766,97.661,1.43619955]
[1644611934403,48.53487146,97.767,97.664,1.43619955]
[1644611934705,15.3623,97.75,97.67,15.3603]
[1644611934922,0.04721072,97.77,97.671,66.897]
[1644611935222,0.04721072,97.78,97.697,1.43619955]
[1644611935423,0.04721072,97.79,97.71,1.43619955]
[1644611935622,0.04721072,97.82,97.711,5.115]
[1644611935921,12.15,97.84,97.711,5.115]
[1644611935922,0.04721072,97.83,97.713,1.43619955]
[1644611936122,5.113,97.829,97.72,15.3513]
[1644611936321,51.1764,97.83,97.721,5.113]
[1644611936322,0.04721072,97.83,97.721,5.113]
[1644611936522,45.27798888,97.839,97.722,1.43619955]
[1644611936722,45.27798888,97.839,97.724,1.43619955]
[1644611936723,5.113,97.838,97.724,1.43619955]
[1644611937024,5.113,97.838,97.722,5.113]
[1644611937025,7.49666791,97.838,97.722,5.113]
[1644611937226,44.7291719,97.819,97.72,20.4642]
[1644611937423,5.114,97.818,97.72,15.3512]
[1644611937623,5.114,97.819,97.72,15.3512]
[1644611938222,15.352,97.81,97.72,15.3512]
[1644611938426,0.04763544,97.83,97.712,46.55685342]
[1644611938427,36.10638835,97.808,97.712,46.55685342]
[1644611938627,5.114,97.807,97.712,46.55685342]
[1644611938824,7.49766791,97.807,97.712,46.55685342]
[1644611939028,12.15,97.8,97.712,46.55685342]
[1644611939224,5.114,97.799,97.712,46.55685342]
[1644611939423,7.49766791,97.799,97.712,46.55685342]
[1644611939623,2.38366791,97.798,97.712,46.55685342]
[1644611939827,41.65255653,97.779,97.712,46.55685342]
[1644611940024,5.115,97.778,97.712,46.55685342]
[1644611941230,41.65255653,97.779,97.712,46.55685342]
[1644611941426,2.38366791,97.778,97.712,46.55685342]
[1644611941626,5.115,97.777,97.712,46.55685342]
[1644611942026,5.115,97.778,97.712,46.55685342]
[1644611942225,41.65255653,97.779,97.712,46.55685342]
[1644611944431,5.115,97.778,97.712,46.55685342]
[1644611944830,2.38366791,97.777,97.68,15.3575]
[1644611945035,5.116,97.776,97.68,15.3575]
[1644611945229,41.65255653,97.779,97.68,15.3575]
[1644611945832,41.65255653,97.779,97.681,47.53036416]
[1644611946132,15.3582,97.77,97.69,15.357]
[1644611946733,5.116,97.769,97.69,15.357]
[1644611946933,5.116,97.769,97.681,47.53036416]
[1644611947132,37.53197869,97.759,97.681,47.53036416]
[1644611947637,2.38366791,97.758,97.681,47.53036416]
[1644611947833,5.116,97.758,97.681,47.53036416]
[1644611948234,5.116,97.758,97.663,5.116]
[1644611948440,15.3633,97.74,97.663,5.116]
[1644611948638,5.117,97.739,97.663,5.116]
[1644611948934,5.117,97.756,97.642,23.4666]
[1644611949135,5.118,97.738,97.642,23.4666]
[1644611949435,2.38366791,97.755,97.643,39.4916032]
[1644611949634,5.117,97.754,97.643,39.4916032]
[1644611949834,34.71091728,97.719,97.643,39.4916032]
[1644611950639,5.118,97.718,97.643,39.4916032]
[1644611950847,5.118,97.718,97.612,1.43619955]
[1644611951039,5.118,97.718,97.61,5.118]
[1644611951040,15.367,97.71,97.61,5.118]
[1644611951241,5.119,97.709,97.61,5.118]
[1644611951640,2.38366791,97.709,97.61,5.118]
[1644611951843,7.50266791,97.708,97.603,36.73231093]
[1644611952243,2.38366791,97.707,97.603,36.73231093]
[1644611952543,2.38366791,97.707,97.578,23.726]
[1644611952544,15.3742,97.69,97.584,1.43619955]
[1644611952746,2.38366791,97.707,97.574,1.43619955]
[1644611952747,12.15,97.68,97.574,1.43619955]
[1644611952946,5.121,97.679,97.555,4.93289393]
[1644611953142,1.04,97.665,97.543,1.43619955]
[1644611953343,47.46231796,97.663,97.544,46.78763834]
[1644611953570,12.15,97.65,97.544,46.78763834]
[1644611953744,20.628721,97.649,97.544,46.78763834]
[1644611953946,57.60579186,97.648,97.544,46.78763834]
[1644611954145,20.628721,97.647,97.544,46.78763834]
[1644611954345,53.955966,97.646,97.523,1.43619955]
[1644611954550,5.123,97.645,97.526,1.43619955]
[1644611954847,5.123,97.645,97.499,2.87341871]
[1644611954848,15.3861,97.62,97.516,1.43619955]
[1644611955047,5.124,97.619,97.516,1.43619955]
[1644611955249,34.29672272,97.619,97.518,43.1626637]
[1644611955450,34.29672272,97.619,97.53,1.43619955]
[1644611955653,34.29672272,97.619,97.532,1.43619955]
[1644611955847,34.29672272,97.619,97.533,40.89883558]
[1644611956048,39.42072272,97.619,97.533,40.89883558]
[1644611956247,39.42072272,97.619,97.534,1.43619955]
[1644611956448,15.3841,97.61,97.534,1.43619955]
[1644611956648,15.3841,97.61,97.533,40.89883558]
[1644611956847,10.3841,97.61,97.533,40.89883558]
[1644611960552,5.124,97.609,97.533,40.89883558]
[1644611961750,10.3841,97.61,97.533,40.89883558]
[1644611961951,5.124,97.609,97.533,40.89883558]
[1644611962652,10.3841,97.61,97.533,40.89883558]
[1644611964953,15.3868,97.6,97.517,1.43619955]
[1644611965253,7.50766791,97.609,97.508,1.43619955]
[1644611965254,5.125,97.599,97.508,1.43619955]
[1644611965455,5.125,97.608,97.508,1.43619955]
[1644611965652,5.125,97.608,97.507,1.43619955]
[1644611965853,2.38366791,97.607,97.508,1.43619955]
[1644611966054,15.3885,97.59,97.507,1.43619955]
[1644611966354,12.15,97.58,97.504,1.43619955]
[1644611966553,5.125,97.579,97.502,1.43619955]
[1644611966755,7.50866791,97.579,97.502,1.43619955]
[1644611966954,36.64401728,97.578,97.486,1.43619955]
[1644611967154,36.64401728,97.578,97.432,23.8532]
[1644611967155,5.126,97.577,97.471,1.43619955]
[1644611967354,25.42485029,97.577,97.471,1.43619955]
[1644611967554,15.3929,97.56,97.461,1.43619955]
[1644611967759,12.15,97.55,97.454,1.43619955]
[1644611967957,37.21339214,97.549,97.448,38.59437943]
[1644611968155,5.128,97.548,97.45,1.43619955]
[1644611968355,5.128,97.548,97.452,1.43619955]
[1644611968580,25.42685029,97.548,97.452,1.43619955]
[1644611968755,25.42685029,97.548,97.448,38.59437943]